Cogmind - Beta 16 @@@ ROGUE MODE // 2025.12.31 @ 18:02:38 Player: Compilatron Result: Destroyed by 9M-0AJ(R) with Subdweller Laser Performance ------------- Evolutions (0) 0 Regions Visited (3) 600 Robots Destroyed (20) 100 Value Destroyed (584) 584 Prototype IDs (1) 20 Alien Tech Used (0) 0 Bonus (60) 60 TOTAL SCORE: 1364 Bonus ------- Follower Combat Kills 60 Cogmind --------- Core Integrity 0/250 Matter 296/300 Energy 197/200 System Corruption 0% Temperature Cool (18) Movement Walking (200) Ox1 Location -10/Subcaves Parts ------- > --- POWER (1) -------- Subdweller Power Source > --- PROPULSION (2) --- Aluminum Leg Makeshift Leg > --- UTILITY (2) ------ Large Storage Unit Seismic Detector > --- WEAPON (2) ------- Spread Laser Barrage Gun > --- INVENTORY (15) --- Improved Ion Engine Improved Ion Engine Aluminum Leg Aluminum Leg Improved Heat Sink Compact Matter Pod (150) Experimental Sensor Array Riot Gun Spread Laser Spread Laser Rocket Launcher Multitool Scrap Shield Fragment (50) Scrap Shield Fragment (49) Scrap Shield Fragment (47) Peak State ------------ > --- POWER ------------ Improved Ion Engine > --- PROPULSION ------- Aluminum Leg Aluminum Leg > --- UTILITY ---------- Large Storage Unit Experimental Sensor Array > --- WEAPON ----------- Spread Laser Spread Laser > --- INVENTORY -------- Improved Ion Engine Improved Ion Engine Light Treads Light Treads Aluminum Leg Aluminum Leg Compact Wheel Improved Heat Sink High-capacity Matter Pod Structural Scanner Seismic Detector ECM Suite Light Armor Plating Spread Laser Rocket Launcher [Rating: 20] Favorites ----------- Power Improved Ion Engine Engine Improved Ion Engine Propulsion Aluminum Leg Leg Aluminum Leg Utility Large Storage Unit Device Seismic Detector Storage Large Storage Unit Protection Light Armor Plating Weapon Spread Laser Energy Gun Spread Laser Ballistic Gun Assault Rifle Build | -11 -10 -10 -10 ------- Run | Yrd Mat Min Sub Slots Evolved . | . . . . Power . | . . . . Propulsion . | . . . . Utility . | . . . . Weapon . | . . . . Parts Attached 20 | . 15 2 3 Power 3 | . 2 . 1 Engine 3 | . 2 . 1 Core . | . . . . Reactor . | . . . . Propulsion 7 | . 6 . 1 Treads . | . . . . Leg 7 | . 6 . 1 Wheel . | . . . . Hover . | . . . . Flight . | . . . . Utility 7 | . 5 2 . Device 2 | . . 2 . Storage 2 | . 2 . . Processor . | . . . . Hackware . | . . . . Protection 3 | . 3 . . Artifact . | . . . . Weapon 3 | . 2 . 1 Energy Gun 2 | . 2 . . Energy Cannon . | . . . . Ballistic Gun 1 | . . . 1 Ballistic Cannon . | . . . . Launcher . | . . . . Special Weapon . | . . . . Impact Weapon . | . . . . Slashing Weapon . | . . . . Piercing Weapon . | . . . . Special Melee Weapon . | . . . . Unidentified Prototypes 1 | . . 1 . Parts Lost 4 | . 4 . . Power 1 | . 1 . . Propulsion 1 | . 1 . . Utility 1 | . 1 . . Weapon 1 | . 1 . . Highest Loss Streak 1 | . 1 . . To Critical Strikes . | . . . . Average Backups 13 | . 12 14 13 Power 1 | . 1 2 2 Propulsion 4 | . 4 5 3 Utility 3 | . 2 5 4 Weapon 2 | . 3 2 3 Tool/Special . | . . . . Unused Backups 26 | . 11 3 12 Power 5 | . 3 . 2 Propulsion 6 | . 4 . 2 Utility 7 | . 2 1 4 Weapon 7 | . 2 2 3 Tool/Special 1 | . . . 1 Average Slot Usage (%) 97 | . 94 100 100 Engine 13 | . 13 14 14 Leg 27 | . 27 28 28 Device 8 | . . 14 14 Storage 14 | . 14 14 14 Protection 4 | . 11 . . Energy Gun 18 | . 9 28 22 Ballistic Gun 8 | . 16 . 5 Peak Build Rating 20 | . 12 20 17 Average Rating 11 | . 9 12 14 On Entrance 9 | 6 6 12 13 Avg Prop Armor Cover (%) . | . . . . Naked Turns . | . . . . Heaviest Build 36 | 14 36 34 34 Greatest Support 30 | 20 20 20 30 Greatest Overweight (x) 1 | . 1 1 1 Average Overweight (x) . | . . 1 1 Largest Inventory Capacity 15 | . 15 15 15 Average Capacity 14 | . 13 15 15 Most Carried 15 | . 15 15 15 Average Carried 13 | . 12 14 14 Final Capacity 15 | 8 15 15 15 Final Carried 15 | 6 15 15 15 Class Distribution -------------------- 100% | Mutant Dominant Class ---------------- Mutant | -10/Materials Mutant | -10/Mines Mutant | -10/Subcaves Resources | -11 -10 -10 -10 ----------- Run | Yrd Mat Min Sub Matter Collected 1149 | 200 523 328 98 Remotely . | . . . . Salvage Created 630 | . 523 40 67 Parts 37 | . 35 . 2 Haulers Intercepted . | . . . . Recyclers Shooed 1 | . . 1 . Parts Field Recycled . | . . . . Retrieved Matter . | . . . . Parts Self-Destructed 11 | . . . 11 Prevented . | . . . . Parts Restored . | . . . . Kills | -11 -10 -10 -10 ------- Run | Yrd Mat Min Sub Combat Hostiles Destroyed 17 | . 15 . 2 Guns 17 | . 15 . 2 Classes Destroyed 7 | . 4 1 2 Builder 1 | . 1 . . Recycler 1 | . . 1 . Watcher 1 | . 1 . . Swarmer 3 | . 3 . . Grunt 12 | . 12 . . Artisan 1 | . . . 1 Subdweller 2 | . . . 2 Best Kill Streak 3 | . 3 1 2 Combat Bots Only 3 | . 3 . 2 Max Kills in Single Turn 1 | . 1 1 1 Gunslinging . | . . . . Exploded . | . . . . Melee . | . . . . Uniques/NPCs Destroyed . | . . . . Combat | -11 -10 -10 -10 -------- Run | Yrd Mat Min Sub Hostile Shots Fired 109 | . 93 . 16 Missed 21 | . 17 . 4 Hits 88 | . 76 . 12 Projectile 88 | . 76 . 12 Critical Strikes 1 | . 1 . . Damage Taken 1280 | . 912 . 368 Core 262 | . 125 . 137 Absorbed by Shields . | . . . . Core Remaining (%) 100 | 100 . . . Volleys Fired 94 | . 71 3 20 Largest 2 | . 2 2 2 Hottest 130 | . 130 130 130 Shots Fired 170 | . 124 6 40 Gun 170 | . 124 6 40 Cannon . | . . . . Launcher . | . . . . Special . | . . . . Kinetic 112 | . 94 . 18 Thermal 58 | . 30 6 22 Explosive . | . . . . Electromagnetic . | . . . . Robot Hit Streak 11 | . 8 10 11 Robot Miss Streak 7 | . 7 3 7 Penetration Max . | . . . . Secondary Targets 2 | . 1 . 1 Max Gunslinging Chain 1 | . 1 . 1 Shots Hit Robots 103 | . 80 6 17 Core Hits 70 | . 50 7 13 Critical Kills . | . . . . Critical Parts Destroyed 1 | . 1 . . Critical Strikes 1 | . 1 . . Destroy 1 | . 1 . . Melee Attacks . | . . . . Impact . | . . . . Slashing . | . . . . Piercing . | . . . . Sneak Attacks . | . . . . Combat Hostiles . | . . . . Follow-up Attacks . | . . . . Damage Inflicted 1344 | . 1021 87 236 Guns 1344 | . 1021 87 236 Cannons . | . . . . Explosions . | . . . . Melee . | . . . . Ramming . | . . . . Kinetic 783 | . 705 . 78 Thermal 561 | . 316 87 158 Explosive . | . . . . Electromagnetic . | . . . . Impact . | . . . . Slashing . | . . . . Piercing . | . . . . Highest Corruption . | . . . . Average Corruption . | . . . . Corruption Purged . | . . . . Corruption Blocked . | . . . . Overload Shots . | . . . . Overflow Damage . | . . . . Projectiles . | . . . . Explosions . | . . . . Melee . | . . . . Knockbacks . | . . . . Impact . | . . . . Kinetic . | . . . . Secondary . | . . . . Self-Inflicted Damage . | . . . . Shots . | . . . . Rammed . | . . . . Targets Rammed . | . . . . Kicked . | . . . . Crushed . | . . . . Highest Temperature 342 | . 342 144 28 Average Temperature 83 | . 100 66 11 Received Heat Transfer 522 | . 492 . 30 Effects 1 | . 1 . . Matter Decay 1 | . 1 . . Siege Activations . | . . . . Martial Activations . | . . . . Shielding Activations . | . . . . Robots Disrupted . | . . . . Combat Hostiles . | . . . . Robots Corrupted . | . . . . Combat Hostiles . | . . . . Parts Fried . | . . . . Impact Corruptions . | . . . . Robots Melted . | . . . . Combat Hostiles . | . . . . Parts Melted 2 | . . . 2 Heat Transferred 675 | . 385 110 180 Parts Sabotaged . | . . . . Parts Stolen . | . . . . Parts Stripped . | . . . . Power Chain Reactions . | . . . . Alert | -11 -10 -10 -10 ------- Run | Yrd Mat Min Sub Maximum Alert Level . | . . . . Low Security (%) 100 | . 100 100 . Level 1 . | . . . . Level 2 . | . . . . Level 3 . | . . . . Level 4 . | . . . . Level 5 . | . . . . High Security . | . . . . Max Security . | . . . . Peak Influence 97 | . 97 30 . Initial 30 | . . 30 . Average 20 | . 33 1 . Influence Increases 527 | . 522 5 . Destroy 0b10 Robot/C 300 | . 300 . . Destroy 0b10 Robot/NC 15 | . 10 5 . Destroy Leader 82 | . 82 . . Successful Hack 21 | . 21 . . Destroy Structure 4 | . 4 . . Lose Combat Pursuer 105 | . 105 . . Influence Decreases 527 | . 445 82 . Entered New Map 47 | . . 47 . Time Decay 450 | . 415 35 . Lost Part 30 | . 30 . . Squads Dispatched 4 | . 4 . . Investigation 1 | . 1 . . Extermination . | . . . . Reinforcement 3 | . 3 . . Assault . | . . . . Garrison . | . . . . Intercept . | . . . . Searches Triggered . | . . . . Construction Impeded . | . . . . Haulers Reinforced . | . . . . Active Scanning Responses . | . . . . Cargo Convoy Interrupts . | . . . . Stealth | -11 -10 -10 -10 --------- Run | Yrd Mat Min Sub Distress Signals 2 | . 2 . . Communications Jammed . | . . . . Distress Signals . | . . . . Times Spotted 33 | . 26 . 7 Peak Tracking Total 3 | . 3 . 3 Tactical Retreats 5 | . 5 . . Traps | -11 -10 -10 -10 ------- Run | Yrd Mat Min Sub Traps Triggered 3 | . 1 . 2 Indirectly . | . . . . Trap Hack Attempts . | . . . . Triggered . | . . . . Disarmed . | . . . . Reprogrammed . | . . . . Reused . | . . . . Traps Extracted . | . . . . Installed . | . . . . Triggered . | . . . . Machines | -11 -10 -10 -10 ---------- Run | Yrd Mat Min Sub Machines Disabled . | . . . . Max in Single Turn . | . . . . Machines Repaired . | . . . . Machines Dismantled . | . . . . Machines Sabotaged . | . . . . Overloaded Fab Kills . | . . . . Hacking | -11 -10 -10 -10 --------- Run | Yrd Mat Min Sub Machines Accessed 3 | . 3 . . Terminals 3 | . 3 . . Fabricators . | . . . . Repair Stations . | . . . . Recycling Units . | . . . . Scanalyzers . | . . . . Garrison Access . | . . . . Total Hacks 12 | . 12 . . Successful 8 | . 8 . . Failed 4 | . 4 . . Catastrophic . | . . . . Database Lockouts . | . . . . Manual 10 | . 10 . . Terminals 12 | . 12 . . Fabricators . | . . . . Repair Stations . | . . . . Recycling Units . | . . . . Scanalyzers . | . . . . Garrison Access . | . . . . Terminal Hacks 4 | . 4 . . Branch Access Points 1 | . 1 . . Terminal Index 1 | . 1 . . Locate Traps 1 | . 1 . . Zone Layout 1 | . 1 . . Fabricator Hacks . | . . . . Repair Station Hacks . | . . . . Recycling Unit Hacks . | . . . . Scanalyzer . | . . . . Garrison Access Hacks . | . . . . Unauthorized Hacks 4 | . 4 . . Terminals 4 | . 4 . . Track 1 | . 1 . . Botnet 2 | . 2 . . Operators 1 | . 1 . . Fabricators . | . . . . Repair Stations . | . . . . Recycling Units . | . . . . Scanalyzers . | . . . . Garrison Access . | . . . . Data Cores Recovered . | . . . . Used . | . . . . Hacking Detections 3 | . 3 . . Full Trace Events . | . . . . Feedback Events . | . . . . Feedback Blocked . | . . . . Robot Schematics Acquired . | . . . . Robots Built . | . . . . Authchips . | . . . . Time . | . . . . Total Robot Build Rating . | . . . . Part Schematics Acquired . | . . . . Parts Built . | . . . . Authchips . | . . . . Time . | . . . . Total Part Build Rating . | . . . . Part Studies Acquired . | . . . . Parts Repaired . | . . . . Time . | . . . . Parts Recycled . | . . . . Recycled Matter . | . . . . Retrieved Matter . | . . . . Retrieved Components . | . . . . Parts Scanalyzed . | . . . . Part Schematics Acquired . | . . . . Parts Damaged . | . . . . Bothacking | -11 -10 -10 -10 ------------ Run | Yrd Mat Min Sub Used RIF Installer . | . . . . Robots Hacked . | . . . . Non-combat . | . . . . Combat . | . . . . Robot Hacks Applied . | . . . . Relay Couplers Released . | . . . . Fabnet Peak Effective % . | . . . . Robots Rewired . | . . . . Allies Hacked . | . . . . Hacks Repelled . | . . . . Allies | -11 -10 -10 -10 -------- Run | Yrd Mat Min Sub Total Allies 3 | . . 3 . Largest Group 3 | . . 3 3 Highest-Rated Group 40 | . . 40 40 Highest-Rated Ally 16 | . . 16 16 Total Orders . | . . . . Ally Attacks 31 | . . . 31 Total Damage 441 | . . . 441 Kills 2 | . . . 2 Allies Corrupted . | . . . . Allies Melted . | . . . . Intel | -11 -10 -10 -10 ------- Run | Yrd Mat Min Sub Active Infowar (turns) 1911 | . . 886 1025 Sensors 1 | . . 1 . Seismic 1910 | . . 885 1025 Robot Analysis Total . | . . . . Derelict Logs Recovered 3 | . . 2 1 Drone Launches . | . . . . Drone Recoveries . | . . . . Exploration | -11 -10 -10 -10 ------------- Run | Yrd Mat Min Sub Turns Passed 3276 | . 1365 886 1025 Spaces Moved 1532 | 1 602 439 490 Core . | . . . . Treads . | . . . . Legs 1532 | 1 602 439 490 Wheels . | . . . . Hover . | . . . . Flight . | . . . . Fastest Speed 120 | 120 120 190 190 Average Speed 185 | 120 177 190 192 Slowest Speed 200 | 120 190 190 200 Overloaded Moves . | . . . . Propulsion Burnouts . | . . . . Robots Hopped . | . . . . Potential Cave-ins . | . . . . Cave-ins Triggered . | . . . . Exploration Rate (%) 52 | 2 94 71 41 Regions Visited 3 Branch Regions 2 Pre-discovered Areas 3 | . . 1 2 Known Exits Taken 1 | . 1 . . Unknown Exits Taken 2 | 1 . 1 . Scrap Searched 6 | . . . 6 Spaces Dug . | . . . . Terrain Destroyed . | . . . . Melee . | . . . . Projectile . | . . . . AOE . | . . . . Terrain Rammed . | . . . . Walls Destroyed . | . . . . Machines Disabled . | . . . . Actions | -11 -10 -10 -10 --------- Run | Yrd Mat Min Sub Total 1805 | . 785 486 534 Wait 95 | . 57 36 2 Move 1529 | . 601 438 490 Hop . | . . . . Pick Up 34 | . 23 3 8 Fast Attach 1 | . 1 . . Attach 5 | . 5 . . Detach . | . . . . Swap 16 | . 10 3 3 Drop 30 | . 17 3 10 Fire 94 | . 71 3 20 Melee . | . . . . Ram . | . . . . Kick . | . . . . Crush . | . . . . Escape Stasis . | . . . . Rewire 1 | . . . 1 Trap . | . . . . Miscellaneous . | . . . . Route ------- -11/Scrapyard -10/Materials (discovered 4 exits: [*Mat x3] / *Min) -10/Mines (discovered 3 exits: [*Mat x2] / [*Sub]) -10/Subcaves History --------- Turn | Location | Event 1 | -11/Scrapyard | Discovered new exit (range 0) 1 | -11/Scrapyard | Entered Materials 295 | -10/Materials | Discovered new exit (range 8) 307 | -10/Materials | Build established: Mutant 674 | -10/Materials | Discovered new exit (range 9) 862 | -10/Materials | Discovered new exit (range 15) 1079 | -10/Materials | Identified exit to Mines 1134 | -10/Materials | Discovered new exit (range 16) 1366 | -10/Materials | Entered Mines 1381 | -10/Mines | Received a Rocket Launcher from a helpful Derelict 1507 | -10/Mines | Assisted by bots powering up and referring to "LRC-V3" 1608 | -10/Mines | Found a damaged Exp. Sensor Array with a note attached 1612 | -10/Mines | Found Prototype Device 1613 | -10/Mines | Identified Exp. Sensor Array 1676 | -10/Mines | Learned Materials emergency access door positions 1770 | -10/Mines | Learned location of Storage (-9) 2102 | -10/Mines | Discovered new exit (range 12) 2149 | -10/Mines | Discovered new exit (range 8) 2175 | -10/Mines | Discovered new exit (range 6) 2219 | -10/Mines | Deemed a non-threat by the Exiles lab entrance 2252 | -10/Mines | Entered Subcaves 2252 | -10/Subcaves | Accompanied by 3 allies 2271 | -10/Subcaves | Learned location of Zion (-6) 2510 | -10/Subcaves | Met a Zionite searching for "candidates" 2580 | -10/Subcaves | Disturbed a concealed Subdweller 2875 | -10/Subcaves | Shifting Twisted Machinery released Battle Cannon 2906 | -10/Subcaves | Core integrity fell below 50% 2990 | -10/Subcaves | Shifting Twisted Machinery released Mak. Leg 3235 | -10/Subcaves | Core integrity fell below 20% 3272 | -10/Subcaves | A Subdweller sparked back to life 3272 | -10/Subcaves | A Subdweller sparked back to life 3272 | -10/Subcaves | A Subdweller sparked back to life 3277 | -10/Subcaves | Destroyed by 9M-0AJ(R) with Subdweller Laser Last Messages --------------- 03234_ Critical hit (Impale). 03240_ Trooper 1b triggered Piercing Trap. 03240_ Spikes shoot up from the floor. 03240_ Trooper 1b suffers critical hit (Impale). 03242_ Triggered Piercing Trap. 03242_ Spikes shoot up from the floor. 03242_ Critical hit (Impale). 03262_ Trooper 1b triggered Shrapnel Trap. 03262_ An expanding cloud of shrapnel blasts out in all directions. 03262_ Trooper 1b destroyed. 03271_ Attempting to rewire JG-0NY(R). 03271_ JG-0NY(R) is broken beyond repair. 03272_ 9M-0AJ(R) creaks and sparks as it begins to move. 03272_ 0B-0A5(R) creaks and sparks as it begins to move. 03272_ JG-0NY(R) creaks and sparks as it begins to move. Map ----- +----------------------------------------------------+ | ???????????????????????????????????????????????? | | ???????????????????????????????????????????????? | | ???????????????????????????????????????????????? | | ???????????????????????????????????????????????? | | ???????????????????????????????????????????????? | | ???????????????????????????????????????????????? | | ???????????????????????????????????????????????? | | ???????????????????????????????????????????????? | | ???????????????????????????????????????????????? | | ???????????????????????????????????????????????? | | ???????????????????????????????????????????????? | | ######??????????????????##?????????????????????? | | # #?????????????????# #?##??????????????????? | | # ?????????????????# ## ??##??????????????? | | # #?????????####??## ### ##?????????????? | | # ##???????## ##?# ??????????????? | | # ##?????## #?# ? ???????????????? | | # ##???## ### ? ????????????????? | | ##?## ## #? ?? ?????????????????? | | ### ### ### ?? ??????????????????? | | ## ##?## ## #??# #??????????????????? | | # #?#; ;; ;### ##?????????????????? | | # ### # ##????????????????? | | ## % ##???????????????? | | &# g #???????????????? | | ## ## ## ; @ R #???????????????? | | ## ###### ; # < ###?????????????? | | ! ######????# < R &< #?????????????? | | ##?????? #?## R ##?????????????? | | ##??????? #?## #### < # ##??????????????? | | #????????? #####??####### ##???????????????? | | ##????????? ##?# ###?? ????????????????? | | # #????????? ## ##?? #???????????????? | | ## ##???????? ?? ???????????????? | | ?? #????????? ????? ??????????????? | | ?? #?????????? ??????? #?????????????? | | ?# #??????????# #?????????##?????????????? | | # #???????#### #? #????????????????????????? | | ##??????## ## #????????????????????????? | | ###???????# #?????????????????????????? | | ######### #?????????????????????????? | | ## # ## # ## #?????????????????????????? | | #?# ### ##?????????????????????????? | | ### ## #??????????????????????????? | | # # ## ##???? ??????????????????? | | ######## ### #???????????????? | | ## #????## #???????????????? | | ?# ##????# #???????????????? | | ?# #?????# ####### #???????????????? | | ?#### #?????# #??????? #???????????????? | +----------------------------------------------------+ Best States ------------- Heat Dissipation 25 Energy Generation 15 Energy Capacity 265 Matter Stores 300 Matter Capacity 300 Sight Range 16 Terrain Scan Density 10 Armor Coverage 150 Power Shielding 33 Evasion (%) 55 Item Schematics ----------------- None Robot Schematics ------------------ None Fabricated ------------ Nothing Repaired ---------- Nothing Studied --------- None Alien Tech Used ----------------- None Achievements -------------- None Challenges ------------ None Game ------ Seed SuperchargedProjectionSlayer Manual? 0 Play Time 00:14:59 Cumulative 85.8 hours Start 2025.12.31 @ 17:48:44 End 2025.12.31 @ 18:02:38 Sessions 1 Manual Loads 0 Difficulty Rogue Special Mode None Game No. 141 Rogue 117 Adventurer 20 Explorer 4 Win Type - Total 1 Types 0/0/0/1/0/0/0/0/0/0 Lore% 55 Gallery% 45 Achievement% 36 Wizard Run 0 Options --------- Layout 1 ASCII 0 Keyboard 0 Movement Numpad Keybinds 0 Fullscreen 2 Font 24/Smallcaps Map View 50x35 Zoom Use 0% Tactical HUD 1 Map Filters NONE Filters NONE Steam 1 RUN: 3d85e3b5-4e2a-4311-8c6f-fe229ec6b68c